[Event "CZE-ch U12 Open 2023"]
[Site "Teplice"]
[Date "2023.03.16"]
[Round "7.4"]
[White "Bara, Jan"]
[Black "Hladky, Mikulas"]
[Result "1-0"]
[ECO "D38"]
[WhiteElo "1712"]
[BlackElo "1476"]
[Annotator "NA RC COMBH"]
[PlyCount "115"]
[EventDate "2023.03.09"]
[EventType "swiss"]
[EventCountry "CZE"]
[SourceTitle "playchess.com"]
[Source "ChessBase"]
[SourceQuality "1"]
[TimeControl "40/5400+30:1800+30"]

1. Nf3 {[%emt 0:00:04]} Nf6 {[%emt 0:00:24]} 2. c4 {[%emt 0:00:28]} e6 {[%emt 0:00:21]} 3. d4 {[%emt 0:01:09]} d5 {[%emt 0:00:37]} 4. Nc3 {[%emt 0:00:18]} Bb4 {[%emt 0:01:28]} 5. Bg5 {[%emt 0:11:09]} h6 {[%emt 0:06:45]} 6. Bxf6 {[%emt 0:00:57]} Qxf6 {[%emt 0:00:56]} 7. e3 {[%emt 0:01:02]} Nd7 {[%emt 0:02:47]} 8. cxd5 {[%emt 0:02:35]} exd5 {[%emt 0:01:03]} 9. Bd3 {[%emt 0:00:45]} c6 {[%emt 0:01:34]} 10. O-O {[%emt 0:01:17]} O-O {[%emt 0:01:04]} 11. Qc2 {[%emt 0:02:36]} Bxc3 {[%emt 0:24:58]} 12. Qxc3 {[%emt 0:00:31]} Qd8 {[%emt 0:02:30]} 13. b4 {[%emt 0:06:40]} a6 {[%emt 0:05:03]} 14. a4 {[%emt 0:02:27]} Nf6 {[%emt 0:02:38]} 15. b5 {[%emt 0:13:15]} axb5 {[%emt 0:03:49]} 16. axb5 {[%emt 0:01:10]} Rxa1 {[%emt 0:07:09]} 17. Rxa1 {[%emt 0:00:00]} Bd7 {[%emt 0:00:40]} 18. bxc6 {[%emt 0:01:49]} Bxc6 {[%emt 0:01:21]} 19. Ne5 {[%emt 0:00:27]} Qb6 {[%emt 0:04:04]} 20. Rb1 {[%emt 0:02:27]} Qc7 {[%emt 0:03:19]} 21. Rc1 {[%emt 0:00:18]} Rc8 {[%emt 0:02:58]} 22. Bb5 {[%emt 0:04:07]} Qd6 {[%emt 0:05:42]} 23. Qc5 {[%emt 0:07:43]} Qxc5 {[%emt 0:02:23]} 24. Rxc5 Ra8 {[%emt 0:00:36]} 25. f3 {[%emt 0:03:19]} Bxb5 {[%emt 0:01:01]} 26. Rxb5 {[%emt 0:00:02]} Ra7 {[%emt 0:01:08]} 27. g4 {[%emt 0:13:48]} g6 {[%emt 0:03:12]} 28. h4 {[%emt 0:03:08]} g5 {[%emt 0:01:02]} 29. hxg5 {[%emt 0:01:27]} hxg5 {[%emt 0:00:08]} 30. Rc5 {[%emt 0:03:49]} Ra1+ {[%emt 0:01:59]} 31. Kf2 {[%emt 0:01:50]} Ra2+ {[%emt 0:00:45]} 32. Ke1 {[%emt 0:01:51]} Ra1+ {[%emt 0:01:51]} 33. Kd2 {[%emt 0:01:12]} Ra2+ {[%emt 0:00:31]} 34. Kd3 {[%emt 0:00:50]} Ra3+ {[%emt 0:00:27]} 35. Rc3 {[%emt 0:00:06]} Ra2 {[%emt 0:00:59]} 36. Rb3 {[%emt 0:00:36]} Ra7 {[%emt 0:00:31]} 37. Kc3 {[%emt 0:00:48]} Ne8 {[%emt 0:02:20]} 38. Nd7 {[%emt 0:03:20]} b5 {[%emt 0:00:58]} 39. Nb6 {[%emt 0:01:12]} Nc7 {[%emt 0:03:20]} 40. Kb4 {[%emt 0:01:18]} Ra2 {[%emt 0:01:32]} 41. Kc5 {[%emt 0:32:15]} Rf2 {[%emt 0:30:18]} 42. Kd6 {[%emt 0:02:10]} Ne8+ {[%emt 0:01:28]} 43. Ke7 {[%emt 0:00:34]} Nc7 {[%emt 0:01:50]} 44. Rc3 {[%emt 0:01:44]} Ne6 {[%emt 0:00:23]} 45. Nxd5 {[%emt 0:01:20]} Rxf3 {[%emt 0:00:32]} 46. Nf6+ {[%emt 0:00:10]} Kg7 {[%emt 0:00:15]} 47. Nh5+ {[%emt 0:00:11]} Kh7 {[%emt 0:00:48]} 48. d5 {[%emt 0:01:07]} Nf4 {[%emt 0:01:17]} 49. Nf6+ {[%emt 0:02:11]} Kg7 {[%emt 0:00:08]} 50. Nh5+ {[%emt 0:00:36]} Kh7 {[%emt 0:00:06]} 51. Nxf4 {[%emt 0:00:36]} gxf4 {[%emt 0:00:09]} 52. Rc2 {[%emt 0:00:13]} Rxe3+ {[%emt 0:02:11]} 53. Kxf7 {[%emt 0:00:08]} Kh6 {[%emt 0:00:21]} 54. Kf6 {[%emt 0:00:41]} Kh7 {[%emt 0:00:09]} 55. g5 {[%emt 0:00:57]} Rg3 {[%emt 0:01:29]} 56. d6 {[%emt 0:00:13]} f3 {[%emt 0:00:28]} 57. Rh2+ {[%emt 0:00:33]} Kg8 {[%emt 0:00:15]} 58. d7 {[%emt 0:00:03]} 1-0

[Event "CZE-ch U12 Open 2023"]
[Site "Teplice"]
[Date "2023.03.16"]
[Round "7.5"]
[White "Policar, Martin"]
[Black "Sochor, Vaclav"]
[Result "1-0"]
[ECO "A89"]
[WhiteElo "1552"]
[BlackElo "1503"]
[Annotator "NA RC COMBH"]
[PlyCount "87"]
[EventDate "2023.03.09"]
[EventType "swiss"]
[EventCountry "CZE"]
[SourceTitle "playchess.com"]
[Source "ChessBase"]
[SourceQuality "1"]
[TimeControl "40/5400+30:1800+30"]

1. c4 {[%emt 0:00:17]} f5 {[%emt 0:01:04]} 2. Nf3 {[%emt 0:01:04]} Nf6 {[%emt 0:01:45]} 3. Nc3 {[%emt 0:01:53]} g6 {[%emt 0:01:59]} 4. d4 {[%emt 0:02:24]} Bg7 {[%emt 0:00:53]} 5. g3 {[%emt 0:00:43]} O-O {[%emt 0:02:23]} 6. Bg2 {[%emt 0:00:20]} d6 {[%emt 0:03:10]} 7. O-O {[%emt 0:01:01]} Nc6 {[%emt 0:01:47]} 8. d5 {[%emt 0:05:09]} Ne5 {[%emt 0:01:02]} 9. Nxe5 {[%emt 0:00:35]} dxe5 {[%emt 0:03:01]} 10. e4 {[%emt 0:00:37]} f4 {[%emt 0:02:16]} 11. gxf4 {[%emt 0:03:21]} exf4 {[%emt 0:00:32]} 12. e5 {[%emt 0:02:05]} Ng4 {[%emt 0:01:50]} 13. e6 {[%emt 0:00:34]} Ne5 {[%emt 0:01:10]} 14. Qb3 {[%emt 0:01:40]} g5 {[%emt 0:08:48]} 15. f3 {[%emt 0:07:34]} a6 {[%emt 0:06:51]} 16. Ne4 {[%emt 0:01:50]} h6 {[%emt 0:01:29]} 17. Nc5 {[%emt 0:00:19]} Qe8 {[%emt 0:06:24]} 18. Nd3 {[%emt 0:01:08]} Ng6 {[%emt 0:02:06]} 19. Bd2 {[%emt 0:01:56]} Nh4 {[%emt 0:01:17]} 20. Bc3 {[%emt 0:00:28]} Nf5 {[%emt 0:05:59]} 21. Bxg7 {[%emt 0:03:40]} Kxg7 {[%emt 0:00:44]} 22. Ne5 {[%emt 0:02:16]} Ne3 {[%emt 0:01:30]} 23. Rf2 {[%emt 0:05:51]} Qh5 {[%emt 0:08:25]} 24. Bf1 {[%emt 0:01:49]} Rf6 {[%emt 0:08:19]} 25. Qc3 {[%emt 0:04:50]} b5 {[%emt 0:06:13]} 26. b3 {[%emt 0:02:06]} Qe8 {[%emt 0:05:39]} 27. Nf7 {[%emt 0:05:27]} c6 {[%emt 0:03:01]} 28. Qd4 {[%emt 0:01:27]} cxd5 {[%emt 0:01:16]} 29. cxd5 {[%emt 0:03:37]} Nxd5 {[%emt 0:00:58]} 30. Nxg5 {[%emt 0:02:54]} hxg5 {[%emt 0:00:39]} 31. Qxd5 {[%emt 0:00:45]} Bxe6 {[%emt 0:00:15]} 32. Qe5 {[%emt 0:00:37]} Qh5 {[%emt 0:04:48]} 33. Rg2 {[%emt 0:01:47]} Qxf3 {[%emt 0:01:36]} 34. Rxg5+ {[%emt 0:00:33]} Kh6 {[%emt 0:00:41]} 35. Re1 {[%emt 0:06:53]} Rg8 {[%emt 0:03:33]} 36. h4 {[%emt 0:07:35]} Rgg6 {[%emt 0:04:01]} 37. Bg2 {[%emt 0:00:40]} Qd3 {[%emt 0:00:46]} 38. Be4 {[%emt 0:00:28]} Qh3 {[%emt 0:00:41]} 39. Bxg6 {[%emt 0:00:42]} Bg4 {[%emt 0:00:27]} 40. Rh5+ {[%emt 0:01:35]} Kxg6 {[%emt 0:00:28]} 41. Qg5+ {[%emt 0:31:12]} Kf7 {[%emt 0:30:07]} 42. Rh7+ {[%emt 0:00:13]} Ke8 {[%emt 0:00:02]} 43. Rexe7+ {[%emt 0:00:20]} Kd8 {[%emt 0:01:12]} 44. Qg8+ {[%emt 0:00:30]} 1-0

[Event "CZE-ch U12 Open 2023"]
[Site "Teplice"]
[Date "2023.03.16"]
[Round "7.6"]
[White "Komarek, Tobias"]
[Black "Mik, Tomas"]
[Result "0-1"]
[ECO "A10"]
[WhiteElo "1515"]
[BlackElo "1911"]
[Annotator "TA"]
[PlyCount "172"]
[EventDate "2023.03.09"]
[EventType "swiss"]
[EventCountry "CZE"]
[SourceTitle "playchess.com"]
[Source "ChessBase"]
[SourceQuality "1"]
[TimeControl "40/5400+30:1800+30"]

{[%evp 14,172,54,37,47,45,69,46,64,-32,-28,-18,-26,-33,-44,-72,14,18,17,-14,-6,-97,-103,-130,-38,-42,-55,-47,-38,-43,47,0,73,-16,33,-62,-54,-92,-92,-82,-83,-104,-101,-91,-95,-89,-23,-32,-18,-14,0,0,31,31,31,37,23,14,12,38,116,77,241,238,295,295,294,293,320,221,213,213,221,214,293,110,197,181,237,87,87,87,84,69,181,181,181,181,181,180,180,174,245,229,225,164,158,154,173,73,68,13,20,1,38,29,28,0,0,0,0,0,0,0,0,0,0,-401,-31,-31,0,0,0,0,0,0,0,0,0,0,0,0,0,0,0,0,0,0,0,0,0,0,0,-1383,-1332,-1602,-1337,-5695,-5558,-4938,-3841,-2364,-2075,-12797,-11578,-7919,-8654,-29970,-29971,-29982,-29961]} 1. c4 {[%emt 0:00:11]} d6 {[%emt 0:00:11]} 2. g3 {[%emt 0:00:30]} e5 {[%emt 0:00:49]} 3. Bg2 {[%emt 0:01:02]} f5 {[%emt 0:00:43]} 4. e3 {[%emt 0:00:53]} Nf6 {[%emt 0:00:11]} 5. Ne2 {[%emt 0:00:30]} Be7 {[%emt 0:00:26]} 6. Nbc3 {[%emt 0:00:58]} O-O {[%emt 0:00:35]} 7. O-O {[%emt 0:00:55]} Nc6 {[%emt 0:01:42]} 8. d3 {[%emt 0:01:25][%cal Bd2d3,Bd3d4][%mdl 32]} Be6 {[%emt 0:05:25] A21: English Opening: 1...e5 2 Nc3.} 9. b3 {[%emt 0:02:48] [#]} Qe8 $146 {[%emt 0:00:27]} ({Predecessor:} 9... d5 10. Bb2 dxc4 11. dxc4 Qe8 12. a3 a5 13. Qc2 Qh5 {½-½ Pokora,L (1873)-Lacha,J (1800) Olomouc Seniors op 19th 2016 (3)}) 10. f4 {[%emt 0:08:32]} Qh5 {[%emt 0:03:24] White is slightly better.} 11. fxe5 {[%emt 0:03:43]} (11. Nd5 $14 Bxd5 12. cxd5) 11... dxe5 $15 {[%emt 0:01:38]} 12. d4 {[%emt 0:00:50]} Rad8 {[%emt 0:13:57][%cal Of5f4]} (12... Ng4 13. h3 Nf6 14. Nd5 $16) 13. Qe1 {[%emt 0:00:41]} Nb4 {[%emt 0:09:09]} (13... exd4 14. exd4 (14. Nf4 Qf7 $11) 14... Qe8 15. Bf4 $14) (13... Ng4 14. h3 Nf6 15. Bb2 $14 (15. d5 Nb4 $15)) 14. Qd2 {[%emt 0:03:33] Prevents Nc2.} e4 {[%emt 0:05:26]} (14... Ng4 15. h3 Nh6 16. a3 $11 (16. Bxb7 Qxh3 17. Bg2 Qh5 $17)) (14... c6 $17) 15. Nf4 $11 {[%emt 0:02:16][%csl LRe6,LRh5]} Qf7 {[%emt 0:00:19]} 16. Bh3 {[%emt 0:09:40] And now Nxe6 would win.} Bc8 {[%emt 0:06:13]} 17. Bb2 {[%emt 0:01:07]} (17. a3 $11 Na6 18. Nfd5 Nxd5 19. Nxd5) 17... g5 $17 {[%emt 0:01:50]} 18. Nfe2 {[%emt 0:01:11] [#]} g4 {[%emt 0:01:44]} (18... Qg6 $1 $17 {Hoping for ...Nd3.} 19. Ba3 Qh6 20. Bxb4 (20. Bxf5 $2 Bxf5 {[%mdl 64] Remove Defender} 21. Rxf5 Ng4 $17) 20... Bxb4) 19. Bg2 $15 {[%emt 0:00:27]} Nd3 {[%emt 0:00:43]} 20. Nf4 {[%emt 0:00:37]} Nxf4 {[%emt 0:02:31]} 21. Rxf4 {[%emt 0:01:47]} Qh5 {[%emt 0:02:37]} (21... h5 $15) 22. Nb5 {[%emt 0:01:08]} (22. d5 $14) 22... a6 {[%emt 0:02:34]} (22... c6 $11 23. Nc3 b5) 23. Nc3 {[%emt 0:03:12]} (23. Nxc7 $16 Bd6 24. Na8 (24. Qa5 Qf7 $14)) 23... Nd7 {[%emt 0:01:37]} (23... Qg6 $11) 24. Raf1 {[%emt 0:05:42] [#]} (24. Nd5 $14 Bg5 25. Rf2) 24... Ne5 $1 {[%emt 0:04:51]} 25. Nd5 {[%emt 0:04:14] [#]} (25. R4f2 Nd3) 25... Rxd5 {[%emt 0:00:53]} 26. cxd5 {[%emt 0:00:26]} Nd3 {[%emt 0:00:45]} 27. R1f2 {[%emt 0:02:37][%cal Og2f1]} Bd6 {[%emt 0:02:49] Black has more active pieces.} 28. Bf1 {[%emt 0:01:20]} Nxf2 {[%emt 0:01:42]} 29. Rxf2 {[%emt 0:01:12]} Rf6 {[%emt 0:00:39]} (29... Qf7 $17) 30. Bc3 $11 {[%emt 0:03:45]} Rh6 {[%emt 0:00:59][%cal Od6g3]} 31. Rg2 {[%emt 0:00:21]} Qf7 {[%emt 0:05:42]} 32. Bb4 {[%emt 0:01:15]} Qe7 {[%emt 0:01:13]} (32... Qxd5 $2 33. Bc4 $18) 33. Bxd6 {[%emt 0:00:25]} Qxd6 {[%emt 0:00:07]} 34. Qc3 {[%emt 0:00:42]} Rg6 {[%emt 0:03:23]} 35. Rc2 {[%emt 0:01:14]} Rg7 {[%emt 0:00:15]} 36. Qc5 {[%emt 0:01:14]} Qh6 {[%emt 0:03:06]} ({Black should play} 36... Qxc5 $14 37. Rxc5 (37. dxc5 Rd7 $11) 37... b6) 37. Rc3 {[%emt 0:05:40][%cal Od5d6] Strongly threatening d6!} Qf6 {[%emt 0:02:08] [#] Prevents d6.} (37... b6 $16 38. Qa3 Bb7) 38. d6 $1 $18 {[%emt 0:02:05][%mdl 512]} c6 {[%emt 0:00:34]} (38... Rd7 39. dxc7) 39. Bc4+ {[%emt 0:03:18] Black is weak on the dark squares} Kh8 {[%emt 0:02:03]} 40. Qe5 {[%emt 0:00:59]} Qd8 {[%emt 0:03:00] Wards off Qe8+} 41. Be6 {[%emt 0:32:21]} Bxe6 {[%emt 0:32:02]} 42. Qxe6 {[%emt 0:00:08][%mdl 4096] Endgame KQR-KQR} Rg6 {[%emt 0:01:11]} 43. Qxf5 {[%emt 0:02:33]} Qxd6 {[%emt 0:00:11]} 44. Qxe4 $2 {[%emt 0:00:29]} (44. Qc8+ $18 Rg8 45. Qxb7) 44... Qb4 {[%emt 0:00:36]} (44... Qe6 $16 {was worth a try.} 45. Qc2 Rg8) 45. Qe5+ {[%emt 0:01:29]} Kg8 {[%emt 0:00:19]} (45... Rg7 {might work better.}) 46. Qc5 {[%emt 0:00:34]} (46. Rc1 $18) 46... Qxc5 $16 {[%emt 0:00:35]} 47. Rxc5 {[%emt 0:00:09] KR-KR} Re6 {[%emt 0:00:12]} 48. Kf2 {[%emt 0:00:48] Threatens to win with Rg5+.} Rf6+ {[%emt 0:00:21]} (48... Rh6 $1 $14) 49. Ke2 $18 {[%emt 0:00:33]} Rh6 {[%emt 0:00:35]} 50. Rg5+ {[%emt 0:00:11]} Kf7 {[%emt 0:00:13]} 51. Rf5+ {[%emt 0:00:08]} (51. Rxg4 Rxh2+ 52. Kd3 Rxa2 $11) 51... Ke6 {[%emt 0:00:36]} 52. Rf2 {[%emt 0:00:05]} b6 {[%emt 0:00:51]} (52... c5 $142 53. dxc5 Kd5) 53. Kd3 {[%emt 0:01:50]} c5 {[%emt 0:00:21]} 54. a4 {[%emt 0:01:07]} cxd4 {[%emt 0:00:20]} 55. Kxd4 {[%emt 0:01:10]} ({Don't take} 55. exd4 Kd5 $16) 55... Rh5 {[%emt 0:02:02]} 56. b4 {[%emt 0:01:12]} (56. Rc2 $18 {and White stays clearly on top.}) 56... Rd5+ $16 {[%emt 0:00:16]} 57. Kc4 {[%emt 0:01:02]} (57. Ke4 $1 $14 Re5+ 58. Kd3) 57... Rd1 $11 {[%emt 0:00:16]} 58. Rf4 {[%emt 0:01:51]} h5 {[%emt 0:00:28]} 59. Re4+ {[%emt 0:03:16]} Kf6 {[%emt 0:00:06]} 60. Rd4 {[%emt 0:00:08]} Rc1+ {[%emt 0:00:16]} 61. Kd3 {[%emt 0:01:04] Black must now prevent Rd6+.} Ke5 {[%emt 0:00:40] Dodges Rd6} 62. Rc4 {[%emt 0:04:09]} Rd1+ {[%emt 0:00:15]} 63. Ke2 {[%emt 0:00:30]} Rh1 {[%emt 0:00:37]} 64. Rc6 {[%emt 0:03:04]} Rxh2+ {[%emt 0:00:10]} 65. Kf1 $2 {[%emt 0:00:24][%mdl 8192] [#]} (65. Kd3 $11 {and White has nothing to worry.}) 65... Ra2 $2 {[%emt 0:00:19]} ({Black should try} 65... Ke4 $1 $19 {[%cal Re4f3]} 66. Rf6 (66. Rxb6 $2 {loses.} Kf3 $19) 66... Ra2) 66. Rxb6 $15 {[%emt 0:03:00]} Rxa4 {[%emt 0:00:07]} (66... Ke4 $5 {[%cal Re4f3]} 67. Rf6 (67. Rxa6 $2 {too greedy.} Kf3 $19) 67... Rxa4 $17) 67. Ke2 {[%emt 0:02:42]} Ke4 {[%emt 0:01:15] ...Ra2+ is the strong threat.} 68. Re6+ {[%emt 0:00:53]} Kd5 {[%emt 0:00:30]} 69. Rh6 {[%emt 0:01:02]} Rxb4 {[%emt 0:00:12] aiming for ...Rb2+.} 70. Rxa6 {[%emt 0:00:27]} Rb2+ {[%emt 0:00:31]} 71. Kd3 {[%emt 0:00:15]} Rb3+ {[%emt 0:00:03]} 72. Ke2 {[%emt 0:00:12]} Kc4 {[%emt 0:01:00]} 73. Rc6+ {[%emt 0:00:41]} Kd5 {[%emt 0:00:06]} 74. Ra6 {[%emt 0:00:11]} Rb4 {[%emt 0:00:43]} 75. Rf6 {[%emt 0:00:40]} Ke5 {[%emt 0:00:49]} 76. Rf4 {[%emt 0:01:29]} Rb2+ {[%emt 0:00:59]} 77. Kd3 {[%emt 0:00:09]} Rg2 {[%emt 0:00:48]} 78. Re4+ $2 {[%emt 0:00:13][%mdl 8192]} (78. Ra4 $11) 78... Kf5 $19 {[%emt 0:00:43]} 79. Rf4+ {[%emt 0:00:12]} Kg5 {[%emt 0:01:07]} 80. Ke4 {[%emt 0:00:10]} Rxg3 {[%emt 0:00:17]} 81. Rf5+ {[%emt 0:00:06]} Kg6 {[%emt 0:00:19][%cal Og3e3]} 82. Rb5 {[%emt 0:00:14]} Rf3 {[%emt 0:00:58]} 83. Kd3 {[%emt 0:00:25]} g3 {[%emt 0:00:46][%cal Bg4g3,Bg3g2][%mdl 32] ( -> ...g2)} 84. Ke2 {[%emt 0:00:08]} Rf5 {[%emt 0:02:03]} 85. Rb4 {[%emt 0:00:21]} g2 {[%emt 0:00:45]} 86. Rb1 {[%emt 0:00:11]} h4 {[%emt 0:00:10] Both players deserved the win here.   Weighted Error Value: White=0.36/Black=0.28 (precise)} 0-1

[Event "CZE-ch U12 Open 2023"]
[Site "Teplice"]
[Date "2023.03.16"]
[Round "7.7"]
[White "Sboev, Kirill"]
[Black "Boff, Ondrej"]
[Result "0-1"]
[ECO "A04"]
[WhiteElo "1506"]
[BlackElo "1561"]
[Annotator "NA RC COMBH"]
[PlyCount "80"]
[EventDate "2023.03.09"]
[EventType "swiss"]
[EventCountry "CZE"]
[SourceTitle "playchess.com"]
[Source "ChessBase"]
[SourceQuality "1"]
[TimeControl "40/5400+30:1800+30"]

1. Nf3 {[%emt 0:00:03]} c5 {[%emt 0:00:29]} 2. g3 {[%emt 0:00:08]} g6 {[%emt 0:00:32]} 3. Bg2 {[%emt 0:00:11]} Bg7 {[%emt 0:00:14]} 4. O-O {[%emt 0:00:12]} Nc6 {[%emt 0:00:29]} 5. d3 {[%emt 0:00:21]} h5 {[%emt 0:01:31]} 6. e4 {[%emt 0:00:44]} d6 {[%emt 0:02:46]} 7. Nbd2 {[%emt 0:01:06]} Bd7 {[%emt 0:02:09]} 8. Re1 {[%emt 0:02:27]} Nh6 {[%emt 0:06:20]} 9. c3 {[%emt 0:05:09]} O-O {[%emt 0:04:24]} 10. Nf1 {[%emt 0:03:01]} Bg4 {[%emt 0:06:20]} 11. Bf4 {[%emt 0:07:36]} Qd7 {[%emt 0:05:28]} 12. Qd2 {[%emt 0:02:28]} Bxf3 {[%emt 0:03:24]} 13. Bxh6 {[%emt 0:03:20]} Bxg2 {[%emt 0:02:50]} 14. Kxg2 {[%emt 0:02:51]} d5 {[%emt 0:05:14]} 15. Bxg7 {[%emt 0:04:06]} Kxg7 {[%emt 0:00:09]} 16. Qf4 {[%emt 0:00:45]} d4 {[%emt 0:04:27]} 17. c4 {[%emt 0:04:02]} e5 {[%emt 0:03:44]} 18. Qd2 {[%emt 0:01:55]} a6 {[%emt 0:01:47]} 19. Rac1 {[%emt 0:03:08]} Qe7 {[%emt 0:01:07]} 20. a3 {[%emt 0:00:38]} Rfc8 {[%emt 0:02:29]} 21. f4 {[%emt 0:01:54]} b5 {[%emt 0:01:47]} 22. b3 {[%emt 0:01:04]} Rcb8 {[%emt 0:03:41]} 23. Rb1 {[%emt 0:01:22]} a5 {[%emt 0:04:59]} 24. h3 {[%emt 0:02:34]} h4 {[%emt 0:03:35]} 25. g4 {[%emt 0:02:09]} exf4 {[%emt 0:00:33]} 26. Qxf4 {[%emt 0:00:21]} Ne5 {[%emt 0:00:35]} 27. Qd2 {[%emt 0:02:00]} a4 {[%emt 0:03:30]} 28. cxb5 {[%emt 0:03:04]} Rxb5 {[%emt 0:01:32]} 29. bxa4 {[%emt 0:00:22]} Rxb1 {[%emt 0:00:24]} 30. Rxb1 {[%emt 0:00:10]} Rxa4 {[%emt 0:00:41]} 31. Rb3 {[%emt 0:01:48]} Qf6 {[%emt 0:08:02]} 32. Nh2 {[%emt 0:09:43]} Qa6 {[%emt 0:00:16]} 33. Nf3 {[%emt 0:11:51]} Nxf3 {[%emt 0:00:22]} 34. Kxf3 {[%emt 0:00:03]} Rxa3 {[%emt 0:00:29]} 35. Rxa3 {[%emt 0:00:11]} Qxa3 {[%emt 0:00:06]} 36. Kg2 {[%emt 0:01:23]} Qc3 {[%emt 0:01:42]} 37. Qe2 {[%emt 0:00:26]} c4 {[%emt 0:01:11]} 38. Kf2 {[%emt 0:11:23]} cxd3 {[%emt 0:01:17]} 39. Qd1 {[%emt 0:01:04]} Qc2+ {[%emt 0:00:35]} 40. Ke1 {[%emt 0:00:46]} Qxd1+ {[%emt 0:01:17]} 0-1

[Event "CZE-ch U12 Open 2023"]
[Site "Teplice"]
[Date "2023.03.16"]
[Round "7.8"]
[White "Tejnor, Martin"]
[Black "Rudlof, Adam"]
[Result "1/2-1/2"]
[ECO "B32"]
[WhiteElo "1360"]
[BlackElo "1409"]
[Annotator "NA RC COMBH"]
[PlyCount "83"]
[EventDate "2023.03.09"]
[EventType "swiss"]
[EventCountry "CZE"]
[SourceTitle "playchess.com"]
[Source "ChessBase"]
[SourceQuality "1"]
[TimeControl "40/5400+30:1800+30"]

1. e4 {[%emt 0:00:04]} c5 {[%emt 0:00:07]} 2. Nf3 {[%emt 0:00:09]} Nc6 {[%emt 0:00:06]} 3. d4 {[%emt 0:01:03]} cxd4 {[%emt 0:00:06]} 4. Nxd4 {[%emt 0:00:08]} g6 {[%emt 0:00:05]} 5. Be3 {[%emt 0:00:12]} Bg7 {[%emt 0:00:10]} 6. Nc3 {[%emt 0:01:07]} Nf6 {[%emt 0:00:10]} 7. Be2 {[%emt 0:00:59]} O-O {[%emt 0:00:16]} 8. O-O {[%emt 0:00:20]} d5 {[%emt 0:00:10]} 9. exd5 {[%emt 0:00:27]} Nxd5 {[%emt 0:00:08]} 10. Nxd5 {[%emt 0:00:32]} Qxd5 {[%emt 0:00:09]} 11. Bf3 {[%emt 0:00:04]} Qa5 {[%emt 0:00:34]} 12. Nb3 {[%emt 0:15:20]} Qc7 {[%emt 0:02:15]} 13. c3 {[%emt 0:01:25]} Rd8 {[%emt 0:00:41]} 14. Qe2 {[%emt 0:00:58]} Bf5 {[%emt 0:01:24]} 15. Rfd1 {[%emt 0:00:45]} a6 16. Rac1 {[%emt 0:03:41]} Rac8 {[%emt 0:21:05]} 17. h3 {[%emt 0:07:01]} e5 {[%emt 0:28:00]} 18. Nc5 {[%emt 0:09:19]} Bf8 {[%emt 0:03:15]} 19. Ne4 {[%emt 0:02:35]} Bxe4 {[%emt 0:00:53]} 20. Bxe4 {[%emt 0:00:21]} f5 {[%emt 0:04:23]} 21. Bd5+ {[%emt 0:05:15]} Kh8 {[%emt 0:00:15]} 22. Qc4 {[%emt 0:08:02]} Qe7 23. Qe2 {[%emt 0:10:26]} Rd7 {[%emt 0:18:35]} 24. Bb6 {[%emt 0:01:55]} Bh6 {[%emt 0:01:04]} 25. Rc2 {[%emt 0:02:54]} Qf6 {[%emt 0:09:36]} 26. Be3 {[%emt 0:01:31]} Bxe3 {[%emt 0:00:32]} 27. fxe3 {[%emt 0:01:31]} Rcd8 {[%emt 0:00:16]} 28. Rcd2 {[%emt 0:00:27]} Ne7 {[%emt 0:02:18]} 29. Bxb7 {[%emt 0:05:38]} Rxd2 {[%emt 0:00:15]} 30. Rxd2 {[%emt 0:00:02]} Rxd2 {[%emt 0:00:11]} 31. Qxd2 {[%emt 0:00:07]} Qb6 {[%emt 0:00:03]} 32. Bf3 {[%emt 0:00:07]} f4 {[%emt 0:00:32]} 33. Be4 {[%emt 0:05:09]} fxe3 {[%emt 0:00:37]} 34. Qe2 {[%emt 0:00:29]} Nf5 {[%emt 0:01:04]} 35. Bxf5 {[%emt 0:01:30]} gxf5 {[%emt 0:00:13]} 36. Kf1 {[%emt 0:00:45]} f4 {[%emt 0:00:53]} 37. Ke1 {[%emt 0:00:34]} Qg6 {[%emt 0:02:09]} 38. b3 {[%emt 0:01:16]} Qe4 {[%emt 0:01:56]} 39. Qd1 {[%emt 0:02:04]} Qxg2 {[%emt 0:00:55]} 40. Qd8+ {[%emt 0:00:09]} Kg7 {[%emt 0:00:21]} 41. Qe7+ {[%emt 0:30:22]} Kg6 {[%emt 0:30:35]} 42. Qe6+ {[%emt 0:00:13]} 1/2-1/2

[Event "CZE-ch U12 Open 2023"]
[Site "Teplice"]
[Date "2023.03.16"]
[Round "7.9"]
[White "Frantsev, Iegor"]
[Black "Maly, Jiri"]
[Result "0-1"]
[ECO "C24"]
[WhiteElo "1424"]
[BlackElo "1520"]
[Annotator "NA RC COMBH"]
[PlyCount "46"]
[EventDate "2023.03.09"]
[EventType "swiss"]
[EventCountry "CZE"]
[SourceTitle "playchess.com"]
[Source "ChessBase"]
[SourceQuality "1"]
[TimeControl "40/5400+30:1800+30"]

1. e4 {[%emt 0:00:03]} e5 {[%emt 0:00:14]} 2. Bc4 {[%emt 0:00:24]} Nf6 {[%emt 0:00:46]} 3. Qe2 {[%emt 0:00:16]} Nc6 {[%emt 0:01:33]} 4. Nf3 {[%emt 0:01:42]} Bc5 {[%emt 0:01:53]} 5. d3 {[%emt 0:04:16]} h6 {[%emt 0:02:25]} 6. h3 {[%emt 0:00:09]} O-O {[%emt 0:01:09]} 7. Nc3 d6 {[%emt 0:01:38]} 8. g4 {[%emt 0:02:04]} Nh7 {[%emt 0:19:28]} 9. g5 {[%emt 0:12:42]} Nxg5 {[%emt 0:14:44]} 10. Nxg5 {[%emt 0:06:30]} hxg5 {[%emt 0:00:45]} 11. Qh5 {[%emt 0:04:37]} Nd4 {[%emt 0:01:43]} 12. Kd1 {[%emt 0:03:20]} Qf6 {[%emt 0:06:17]} 13. f4 {[%emt 0:03:17]} gxf4 {[%emt 0:09:39]} 14. Rg1 {[%emt 0:07:16]} Nf5 {[%emt 0:17:26]} 15. Rg5 {[%emt 0:14:32]} Ng3 {[%emt 0:01:17]} 16. Qh4 {[%emt 0:00:45]} c6 {[%emt 0:06:50]} 17. Ne2 {[%emt 0:05:10]} Nxe2 {[%emt 0:00:33]} 18. Kxe2 {[%emt 0:00:50]} d5 {[%emt 0:00:42]} 19. exd5 {[%emt 0:01:06]} cxd5 {[%emt 0:01:10]} 20. Bxd5 {[%emt 0:00:18]} Be7 {[%emt 0:00:19]} 21. Be4 {[%emt 0:00:42]} g6 {[%emt 0:01:05]} 22. Bxg6 {[%emt 0:01:03]} fxg6 {[%emt 0:00:30]} 23. Bxf4 {[%emt 0:00:52]} exf4 {[%emt 0:01:29]} 0-1